bitfinex/quotes_BTCUSD_20211001
["timestamp","ask_amount","ask_price","bid_price","bid_amount"]
[1633129988333,0.22219805,48033.0,48032.0,0.48008984]
[1633129988932,0.20819805,48033.0,48032.0,0.44608984]
[1633129989530,0.22219805,48033.0,48032.0,0.48008984]
[1633129990740,0.014,48033.0,48032.0,0.4803228]
[1633129990933,0.416354,48045.0,48032.0,0.50024818]
[1633129991136,0.416354,48045.0,48033.0,0.0539083]
[1633129991333,0.416354,48045.0,48032.0,0.2302568]
[1633129991334,0.00029714,48044.0,48032.0,0.23002384]
[1633129991534,0.07127059,48042.0,48034.0,0.01505279]
[1633129991733,0.07127059,48042.0,48037.0,0.09120729]
[1633129991935,0.425354,48045.0,48037.0,0.09120729]
[1633129992534,0.20816932,48041.0,48037.0,0.09120729]
[1633129993536,0.20816932,48041.0,48037.0,0.12720729]
[1633129995137,0.20816932,48041.0,48037.0,0.09120729]
[1633129995537,0.20816932,48041.0,48037.0,0.12620729]
[1633129995936,0.02277669,48040.0,48037.0,0.12620729]
[1633129996737,0.02277669,48040.0,48037.0,0.035]
[1633129996935,0.02277669,48040.0,48031.0,0.34938478]
[1633129997135,0.20816932,48041.0,48038.0,0.01505501]
[1633129997938,0.20816932,48041.0,48038.0,0.10198764]
[1633129998340,0.20816932,48041.0,48038.0,0.01505501]
[1633129998941,0.20846646,48041.0,48038.0,0.01505501]
[1633129999344,0.20816932,48041.0,48038.0,0.01505501]
[1633129999541,0.22216932,48041.0,48038.0,0.04805501]
[1633129999742,0.312271,48040.0,48038.0,0.04805501]
[1633130000443,0.22216932,48041.0,48038.0,0.04805501]
[1633130001442,0.22216932,48041.0,48038.0,0.033]
[1633130001443,0.02277859,48040.0,48038.0,0.033]
[1633130002642,0.52043032,48041.0,48039.0,0.01505279]
[1633130003043,0.20816932,48041.0,48039.0,0.01505279]
[1633130003543,0.20816932,48041.0,48039.0,0.04605279]
[1633130005750,0.22216932,48041.0,48039.0,0.04605279]
[1633130006749,0.22216932,48041.0,48039.0,0.031]
[1633130006951,0.02277866,48040.0,48033.0,0.43125279]
[1633130007152,0.02277866,48040.0,48034.0,0.216066]
[1633130007551,0.02277866,48040.0,48034.0,0.255066]
[1633130008151,0.20816932,48041.0,48035.0,0.01506169]
[1633130009550,0.20816932,48041.0,48035.0,0.05306169]
[1633130010951,0.20816932,48041.0,48035.0,0.01506169]
[1633130011751,0.20816932,48041.0,48035.0,0.05206169]
[1633130012415,0.02277323,48040.0,48035.0,0.037]
[1633130012957,0.02277323,48040.0,48033.0,0.43125279]
[1633130013555,0.20816932,48041.0,48034.0,0.01529688]
[1633130013754,0.20816932,48041.0,48034.0,0.01506392]
[1633130014756,0.20816932,48041.0,48035.0,0.312228]
[1633130015558,0.20816932,48041.0,48035.0,0.348228]
[1633130016357,0.20816932,48041.0,48035.0,0.036]
[1633130016958,0.026192,48036.0,48034.0,0.01506392]
[1633130017463,0.43598096,48035.0,48034.0,0.01506392]
[1633130017660,0.43598096,48035.0,48031.0,0.10007139]
[1633130017661,0.74,48034.0,48031.0,0.10007139]
[1633130017861,0.53854702,48032.0,48031.0,0.10007139]
[1633130018060,0.87096926,48032.0,48031.0,0.10007139]
[1633130018265,0.18315792,48025.0,48017.0,0.01]
[1633130018462,0.00128453,48018.0,48017.0,0.01]
[1633130018659,0.5707007,48018.0,48017.0,0.01]
[1633130019062,0.5707007,48018.0,48017.0,0.01761658]
[1633130019463,0.7939007,48018.0,48017.0,0.01761658]
[1633130019662,1.0399667,48018.0,48017.0,0.03761658]
[1633130020867,1.0399667,48018.0,48017.0,0.01761658]
[1633130020868,1.0099667,48018.0,48017.0,0.01761658]
[1633130021664,1.0449667,48018.0,48017.0,0.01761658]
[1633130022073,1.0449667,48018.0,48017.0,0.00761658]
[1633130023067,1.0099667,48018.0,48017.0,0.00761658]
[1633130023267,1.0099667,48018.0,48012.0,0.1]
[1633130023469,0.00122203,48013.0,48012.0,0.1]
[1633130023668,0.20262558,48013.0,48012.0,0.1]
[1633130023870,0.41869158,48013.0,48012.0,0.10022613]
[1633130024528,0.73115158,48013.0,48012.0,0.10022613]
[1633130024727,0.73115158,48013.0,48012.0,0.08212513]
[1633130024930,0.73115158,48013.0,48012.0,0.08976399]
[1633130025733,0.77015158,48013.0,48012.0,0.08976399]
[1633130027132,0.73115158,48013.0,48012.0,0.08976399]
[1633130027734,0.76515158,48013.0,48012.0,0.08976399]
[1633130028741,0.98835158,48013.0,48012.0,0.08212513]
[1633130028935,1.01856348,48013.0,48012.0,0.08212513]
[1633130029135,0.76166062,48013.0,48012.0,0.08212513]
[1633130029333,0.76136348,48013.0,48012.0,0.08212513]
[1633130029737,0.79136348,48013.0,48012.0,0.08212513]
[1633130030335,0.76115158,48013.0,48012.0,0.08976399]
[1633130031140,0.73115158,48013.0,48012.0,0.08976399]
[1633130031739,0.76115158,48013.0,48012.0,0.08976399]
[1633130031941,0.7600423,48013.0,48012.0,0.08976399]
[1633130032138,0.55974803,48013.0,48012.0,0.08976399]
[1633130032340,0.75773186,48013.0,48012.0,0.08976399]
[1633130032539,0.55974803,48013.0,48012.0,0.08976399]
[1633130033138,0.52974803,48013.0,48012.0,0.08976399]
[1633130033740,0.55974803,48013.0,48012.0,0.08976399]
[1633130034339,0.58996,48013.0,48012.0,0.08212513]
[1633130035139,0.55996,48013.0,48012.0,0.08212513]
[1633130035541,0.75761751,48013.0,48012.0,0.08212513]
[1633130035740,0.55974803,48013.0,48012.0,0.08212513]
[1633130035940,0.55974803,48013.0,48012.0,0.08976399]
[1633130036141,0.76258016,48013.0,48012.0,0.08976399]
[1633130036543,0.55974803,48013.0,48012.0,0.08976399]
[1633130037342,0.52974803,48013.0,48012.0,0.08976399]
[1633130037741,0.55974803,48013.0,48012.0,0.08976399]
[1633130037940,0.56004517,48013.0,48012.0,0.08976399]
[1633130038744,0.55974803,48013.0,48012.0,0.08976399]
[1633130039143,0.53004517,48013.0,48012.0,0.08976399]
[1633130039740,0.56004517,48013.0,48012.0,0.08212513]
[1633130039940,0.59025721,48013.0,48012.0,0.08212513]
[1633130040342,0.79122932,48013.0,48012.0,0.08212513]
[1633130041141,0.76122932,48013.0,48012.0,0.08212513]
[1633130041341,0.76122932,48013.0,48012.0,0.08976399]
[1633130041342,0.53004517,48013.0,48012.0,0.08976399]
[1633130041745,0.56204517,48013.0,48012.0,0.08976399]
[1633130043140,0.72806313,48013.0,48012.0,0.08976399]
[1633130043742,0.76206313,48013.0,48012.0,0.08976399]
[1633130044347,0.76206313,48013.0,48012.0,0.08476399]
[1633130044541,0.55381652,48013.0,48012.0,0.08476399]
[1633130045141,0.51981652,48013.0,48012.0,0.08476399]
[1633130045342,0.74840613,48013.0,48012.0,0.07712513]
[1633130045743,0.78040613,48013.0,48012.0,0.07712513]
[1633130046741,0.75019402,48013.0,48012.0,0.07712513]
[1633130046948,1.50019402,48013.0,48010.0,0.02263886]
[1633130047147,0.75,48010.0,47998.0,0.0002]
[1633130047346,0.00120439,48001.0,47998.0,0.0002]
[1633130047543,0.60738735,48001.0,47998.0,0.0002]
[1633130047746,0.60768449,48001.0,48000.0,0.00034286]
[1633130048346,0.208436,47999.0,47997.0,0.000139]
[1633130048545,0.73483929,47998.0,47997.0,7.614e-05]
[1633130048744,0.73513643,47998.0,47997.0,7.614e-05]
[1633130048944,0.73513643,47998.0,47991.0,0.01]
[1633130049146,0.75128522,47992.0,47991.0,0.01]
[1633130049344,0.44517029,47992.0,47991.0,0.01]
[1633130049549,0.21642214,47992.0,47991.0,0.01010716]
[1633130049745,0.248125,47992.0,47991.0,0.23330716]
[1633130049945,0.248125,47992.0,47991.0,0.01010716]
[1633130049946,0.032,47992.0,47991.0,0.01010716]
[1633130050145,0.032,47992.0,47991.0,0.01133482]
[1633130050545,0.032,47992.0,47991.0,0.3328781]
[1633130050747,0.032,47992.0,47991.0,0.5560781]
[1633130050946,0.06595454,47992.0,47991.0,0.5560781]
[1633130051149,0.03395454,47992.0,47991.0,0.5560781]
[1633130051348,0.03395454,47992.0,47991.0,0.10435141]
[1633130052156,0.03395454,47992.0,47991.0,0.32755141]
[1633130052349,0.20846603,47993.0,47991.0,0.33183281]
[1633130052549,0.20846603,47993.0,47991.0,0.10863281]
[1633130052748,0.20846603,47993.0,47992.0,9.525e-05]
[1633130052947,0.20846603,47993.0,47991.0,0.1036209]
[1633130053150,0.20846603,47993.0,47992.0,0.00120857]
[1633130053949,0.23046603,47993.0,47992.0,0.00120857]
[1633130054952,0.23046603,47993.0,47991.0,0.00937665]
[1633130055155,0.20846603,47993.0,47991.0,0.00937665]
[1633130055752,0.22646603,47993.0,47991.0,0.00937665]
[1633130055952,0.22646603,47993.0,47992.0,0.08538869]
[1633130056352,0.26042431,47993.0,47992.0,0.08538869]
[1633130056757,0.26042431,47993.0,47991.0,0.00509525]
[1633130057154,0.24242431,47993.0,47991.0,0.00509525]
[1633130057758,0.20846603,47993.0,47991.0,0.00509525]
[1633130057954,0.23546603,47993.0,47992.0,0.00428135]
[1633130058653,0.23546603,47993.0,47990.0,0.10624019]
[1633130058854,0.54805403,47993.0,47989.0,0.0004]
[1633130059054,0.00029714,47992.0,47989.0,0.0004]
[1633130059255,0.44387703,47993.0,47989.0,0.0004]
[1633130059454,0.41687703,47993.0,47989.0,0.0004]
[1633130059655,0.41687703,47993.0,47983.0,0.0188]
[1633130059861,0.312598,47992.0,47985.0,0.00183662]
[1633130060055,0.312598,47992.0,47985.0,0.0006]
[1633130061957,0.03608433,47991.0,47985.0,0.0006]
[1633130062158,0.312608,47990.0,47985.0,0.0006]
[1633130063157,0.312608,47990.0,47987.0,2.06058269]
[1633130063960,0.331608,47990.0,47987.0,2.06058269]
[1633130064761,0.00126635,47988.0,47987.0,2.06058269]
[1633130064966,0.00156349,47988.0,47985.0,0.0004]
[1633130065164,0.00123561,47986.0,47985.0,0.0004]
[1633130065362,0.00153275,47986.0,47985.0,0.0004]
[1633130065560,0.00153275,47986.0,47985.0,0.00048336]
[1633130065960,0.03353275,47986.0,47985.0,0.00048336]
[1633130066161,0.23746976,47986.0,47985.0,0.00048336]
[1633130067362,0.24154498,47986.0,47985.0,0.00048336]
[1633130067962,0.27354498,47986.0,47985.0,0.00048336]
[1633130068766,0.23746976,47986.0,47985.0,0.00048336]
[1633130069164,0.45359476,47986.0,47985.0,0.00048336]
[1633130069429,0.42159476,47986.0,47985.0,0.00048336]
[1633130069565,0.21736061,47986.0,47985.0,0.00048336]
[1633130069767,0.00123561,47986.0,47985.0,0.00048336]
[1633130069966,0.03123561,47986.0,47985.0,0.00048336]
[1633130070367,0.03153275,47986.0,47985.0,0.00048336]
[1633130071167,0.03123561,47986.0,47985.0,0.00048336]
[1633130071366,0.00123561,47986.0,47985.0,0.00048336]
[1633130071968,0.03323561,47986.0,47985.0,0.00048336]
[1633130072970,0.0693109,47986.0,47985.0,0.00048336]
[1633130073170,0.0373109,47986.0,47985.0,0.00048336]
[1633130073770,0.03760804,47986.0,47985.0,0.00048336]
[1633130073971,0.06960804,47986.0,47985.0,0.00048336]
[1633130074369,0.03353275,47986.0,47985.0,0.00048336]
[1633130075443,0.21765775,47986.0,47985.0,0.00048336]
[1633130075970,0.24865775,47986.0,47985.0,0.00048336]
[1633130077373,0.21765775,47986.0,47985.0,0.00048336]
[1633130077975,0.24865775,47986.0,47985.0,0.00048336]
[1633130078573,0.28473311,47986.0,47985.0,0.00048336]
[1633130079371,0.25373311,47986.0,47985.0,0.00048336]
[1633130079573,0.466125,47985.0,47973.0,0.5421]
[1633130079774,0.521175,47980.0,47973.0,0.5421]
[1633130079975,0.40944559,47980.0,47975.0,0.10594283]
[1633130080173,0.40944559,47980.0,47979.0,7.146e-05]
[1633130080580,0.20847,47980.0,47979.0,7.146e-05]
[1633130081779,0.521172,47980.0,47979.0,7.146e-05]
[1633130081980,0.554172,47980.0,47979.0,7.146e-05]
[1633130083381,0.521172,47980.0,47979.0,7.146e-05]
[1633130083982,0.59122355,47980.0,47979.0,7.146e-05]
[1633130084783,0.59247614,47980.0,47979.0,7.146e-05]
[1633130085187,1.00624275,47980.0,47979.0,7.146e-05]
[1633130085385,0.93648834,47980.0,47979.0,7.146e-05]
[1633130085988,0.96748834,47980.0,47979.0,7.146e-05]
[1633130086184,0.96748834,47980.0,47975.0,0.00135481]
[1633130086185,0.312738,47978.0,47975.0,0.00135481]
[1633130086386,0.00125062,47976.0,47975.0,0.00135481]
[1633130086584,0.00154776,47976.0,47975.0,0.00135481]
[1633130087785,0.00125062,47976.0,47975.0,0.00135481]
[1633130087983,0.03225062,47976.0,47975.0,0.00135481]
[1633130088185,0.23373872,47976.0,47975.0,0.00135481]
[1633130088387,0.45016086,47976.0,47975.0,0.00135481]
[1633130088784,0.44986372,47976.0,47975.0,0.00135481]
[1633130089382,0.41886372,47976.0,47975.0,0.00135481]
[1633130089582,0.45490064,47976.0,47975.0,0.00135481]
[1633130089983,0.48790064,47976.0,47975.0,0.00135481]
[1633130090184,0.48819778,47976.0,47975.0,0.00135481]
[1633130090385,0.216125,47975.0,47972.0,0.08335481]
[1633130090588,0.27177564,47976.0,47972.0,0.08335481]
[1633130090785,0.23573872,47976.0,47972.0,0.08335481]
[1633130091385,0.312729,47974.0,47972.0,0.08335481]
[1633130091585,0.21677399,47973.0,47972.0,0.08335481]
[1633130093988,0.24977399,47973.0,47972.0,0.08335481]
[1633130095087,0.28579996,47973.0,47972.0,0.08335481]
[1633130095688,0.25279996,47973.0,47972.0,0.08335481]
[1633130096096,0.06902597,47973.0,47972.0,0.08335481]
[1633130096488,0.033,47973.0,47972.0,0.08335481]
[1633130097891,0.40211406,47975.0,47972.0,0.08335481]
[1633130098089,0.016,47973.0,47972.0,0.10335481]
[1633130099289,0.312723,47974.0,47972.0,0.08335481]
[1633130099694,0.312723,47974.0,47973.0,7.147e-05]
[1633130099893,0.31302014,47974.0,47973.0,7.147e-05]
[1633130100092,0.32302014,47974.0,47973.0,7.147e-05]
[1633130100691,0.35904986,47974.0,47973.0,7.147e-05]
[1633130101293,0.34904986,47974.0,47973.0,7.147e-05]
[1633130101896,0.31302014,47974.0,47973.0,7.147e-05]
[1633130102092,0.346723,47974.0,47973.0,7.147e-05]
[1633130102490,0.34702014,47974.0,47973.0,7.147e-05]
[1633130102893,0.346723,47974.0,47973.0,7.147e-05]
[1633130103294,0.312723,47974.0,47973.0,7.147e-05]
[1633130104093,0.346723,47974.0,47973.0,7.147e-05]
[1633130104694,0.34702014,47974.0,47973.0,7.147e-05]
[1633130104894,0.34702014,47974.0,47973.0,1.147e-05]
[1633130105492,0.31302014,47974.0,47973.0,1.147e-05]
[1633130105895,0.312723,47974.0,47973.0,1.147e-05]
[1633130106096,0.345723,47974.0,47973.0,1.147e-05]
[1633130106296,0.38175278,47974.0,47973.0,1.147e-05]
[1633130106691,0.38204992,47974.0,47973.0,1.147e-05]
[1633130107293,0.31302014,47974.0,47973.0,1.147e-05]
[1633130107494,0.312723,47974.0,47973.0,1.147e-05]
[1633130107895,0.31302014,47974.0,47973.0,1.147e-05]
[1633130108093,0.34602014,47974.0,47973.0,1.147e-05]
[1633130109176,0.38175282,47974.0,47973.0,1.147e-05]
[1633130109376,0.34875282,47974.0,47973.0,1.147e-05]
[1633130109573,0.34875282,47974.0,47973.0,0.00037059]
[1633130109974,0.38175282,47974.0,47973.0,0.00037059]
[1633130110378,0.06902982,47974.0,47973.0,0.00161135]
[1633130110579,0.06902982,47974.0,47973.0,0.62570804]
[1633130110781,0.06902982,47974.0,47973.0,0.42943106]
[1633130110978,0.00029714,47985.0,47974.0,0.75]
[1633130110979,0.12839133,47982.0,47974.0,0.75]
[1633130111181,0.93821282,47991.0,47978.0,0.04933]
[1633130111182,0.5,47991.0,47978.0,0.04933]
[1633130111382,0.05982884,47995.0,47990.0,0.00129398]
[1633130111585,0.0598505,47996.0,47990.0,0.0184]
[1633130111783,0.216162,47995.0,47991.0,5.391e-05]
[1633130111978,0.252162,47995.0,47990.0,0.0184]
[1633130112183,0.00047611,47994.0,47990.0,0.0184]
[1633130112379,0.216162,47993.0,47990.0,0.0184]
[1633130112782,0.528765,47993.0,47984.0,0.29065436]
[1633130112979,0.036,47995.0,47991.0,0.0197873]
[1633130113180,0.216162,47994.0,47991.0,0.0197873]
[1633130113579,0.00047611,47993.0,47991.0,0.0197873]
[1633130113784,0.216162,47992.0,47991.0,0.0197873]
[1633130114178,0.034,47994.0,47991.0,0.0197873]
[1633130114584,0.00047611,47993.0,47984.0,0.29065436]
[1633130114780,0.01808109,47992.0,47984.0,0.0957224]
[1633130114981,0.01808109,47992.0,47989.0,0.00035912]
[1633130115982,0.05508109,47992.0,47989.0,0.00035912]
[1633130116382,0.00047611,47991.0,47989.0,0.00035912]
[1633130116984,0.05508109,47992.0,47989.0,0.00035912]
[1633130117583,0.01808109,47992.0,47989.0,0.00035912]
[1633130117780,0.00047611,47991.0,47989.0,0.00035912]
[1633130117984,0.05508109,47992.0,47989.0,0.00035912]
[1633130118186,0.05508109,47992.0,47990.0,0.08584505]
[1633130118382,0.037,47992.0,47990.0,0.10563904]
[1633130119983,0.036,47992.0,47990.0,0.10563904]
[1633130120183,0.01807932,47991.0,47990.0,0.08584505]
[1633130120586,0.01807932,47991.0,47984.0,0.2049882]
[1633130120786,0.00047611,47990.0,47984.0,0.2049882]
[1633130121382,0.01807932,47991.0,47984.0,0.2049882]
[1633130121383,0.01807932,47991.0,47985.0,0.216162]
[1633130121583,0.01807932,47991.0,47989.0,0.08812523]
[1633130122086,0.04707932,47991.0,47989.0,0.08812523]
[1633130123484,0.01807932,47991.0,47989.0,0.08812523]
[1633130123886,0.312599,47995.0,47990.0,0.01979399]
[1633130124084,0.026,47991.0,47990.0,0.01979399]
[1633130125288,0.026,47991.0,47990.0,0.02090775]
[1633130125486,0.405134,47995.0,47990.0,0.02090775]
[1633130125688,0.216162,47994.0,47992.0,0.21238071]
[1633130126887,0.347599,47995.0,47992.0,0.21238071]
[1633130127096,0.23014694,48005.0,47992.0,0.21238071]
[1633130127097,0.05986715,48008.0,47997.0,0.208402]
[1633130127297,0.05989851,48010.0,47998.0,0.48909692]
[1633130127489,0.05,48012.0,47999.0,0.23827594]
[1633130127490,0.10992157,48012.0,47999.0,0.23827594]
[1633130127689,0.05,48012.0,47999.0,0.41178403]
[1633130127890,0.00010714,48000.0,47999.0,0.34246203]
[1633130128089,0.00010714,48000.0,47999.0,0.59062403]
[1633130128694,0.00010714,48000.0,47999.0,0.81382403]
[1633130129088,0.00010714,48000.0,47999.0,0.266562]
[1633130129457,0.00010714,48000.0,47999.0,0.05175162]
[1633130129593,0.00010714,48000.0,47999.0,0.01975162]
[1633130130189,0.03510714,48000.0,47999.0,0.01975162]
[1633130130392,0.03637106,48000.0,47997.0,0.208402]
[1633130130591,0.03637106,48000.0,47999.0,0.00035912]
[1633130130793,0.035,48000.0,47999.0,0.00035912]
[1633130131192,0.06298647,48000.0,47999.0,0.00035912]
[1633130131393,0.02798647,48000.0,47999.0,0.00035912]
[1633130132193,0.05898647,48000.0,47999.0,0.00035912]
[1633130133394,0.02798647,48000.0,47999.0,0.00035912]
[1633130134192,0.05998647,48000.0,47999.0,0.00935912]
[1633130134795,0.032,48000.0,47999.0,0.00935912]
[1633130134998,0.058192,48000.0,47999.0,0.01923493]
[1633130135194,0.058192,48000.0,47999.0,0.01998957]
[1633130135453,0.026192,48000.0,47999.0,0.01098957]
[1633130136197,0.063192,48000.0,47999.0,0.01098957]
[1633130136596,0.063192,48000.0,47999.0,0.00111376]
[1633130136798,0.09117854,48000.0,47999.0,0.00111376]
[1633130137398,0.05417854,48000.0,47999.0,0.00111376]
[1633130138201,0.08717854,48000.0,47999.0,0.00111376]
[1633130139605,0.05417854,48000.0,47999.0,0.00111376]
[1633130140210,0.08817854,48000.0,47999.0,0.00111376]
[1633130140406,0.060192,48000.0,47999.0,0.01098957]
[1633130141473,0.026192,48000.0,47999.0,0.01098957]
[1633130142207,0.08717861,48000.0,47999.0,0.00111376]
[1633130143409,0.05417861,48000.0,47999.0,0.00111376]
[1633130143611,0.0554507,48000.0,47999.0,0.00111376]
[1633130144210,0.0884507,48000.0,47999.0,0.00111376]
[1633130144410,0.2899819,48000.0,47999.0,0.00111376]
[1633130144610,0.29045801,48000.0,47999.0,0.00111376]
[1633130144810,0.08892681,48000.0,47999.0,0.00111376]
[1633130145011,0.08892681,48000.0,47997.0,0.14909156]
[1633130145211,0.0884507,48000.0,47997.0,0.14909156]
[1633130145413,8.333e-05,47998.0,47997.0,0.14909156]
[1633130145609,0.31267133,47998.0,47997.0,0.14909156]
[1633130146014,0.31267133,47998.0,47997.0,0.15897852]
[1633130146211,0.34867133,47998.0,47997.0,0.15897852]
[1633130147411,0.31267133,47998.0,47997.0,0.15897852]
[1633130147613,0.31267133,47998.0,47997.0,0.14909156]
[1633130148213,0.34667133,47998.0,47997.0,0.14909156]
[1633130149514,0.31267133,47998.0,47997.0,0.14909156]
[1633130150117,0.34467133,47998.0,47997.0,0.14909156]
[1633130150317,0.03208333,47998.0,47997.0,0.37229156]
[1633130150520,0.03208333,47998.0,47997.0,1.02874992]
[1633130150718,0.03208333,47998.0,47997.0,1.04714992]
[1633130151315,0.03208333,47998.0,47997.0,1.22483177]
[1633130151516,8.333e-05,47998.0,47997.0,1.32877579]
[1633130151715,8.333e-05,47998.0,47997.0,1.12847943]
[1633130152116,8.333e-05,47998.0,47997.0,1.16247943]
[1633130152518,8.333e-05,47998.0,47997.0,1.60375074]
[1633130152720,8.333e-05,47998.0,47997.0,2.0927194]
[1633130152919,0.06016381,48021.0,48011.0,0.00121249]
[1633130153122,0.06022486,48023.0,48015.0,0.07611495]
[1633130153321,0.072293,48025.0,48016.0,0.2453845]
[1633130153322,0.06022858,48024.0,48016.0,0.2453845]
[1633130153717,0.00022611,48017.0,48016.0,0.2453845]
[1633130153916,0.00022611,48017.0,48016.0,0.4615465]
[1633130154716,0.00022611,48017.0,48016.0,0.7739375]
[1633130155119,0.00022611,48017.0,48016.0,0.4615465]
[1633130155317,0.00022611,48017.0,48016.0,0.4565465]
[1633130156117,0.02722611,48017.0,48016.0,0.4855465]
[1633130156323,0.02722611,48017.0,48016.0,0.245162]
[1633130156917,0.02722611,48017.0,48016.0,0.25496203]
[1633130157121,0.02974564,48017.0,48016.0,0.03880003]
[1633130157318,0.0852994,48014.0,48008.0,1.0036]
[1633130157519,0.00120383,48010.0,48004.0,0.09754952]
[1633130157719,0.00013093,48009.0,48006.0,0.216162]
[1633130157919,0.00120383,48010.0,48006.0,0.216162]
[1633130158324,0.01720383,48010.0,48005.0,1.1916]
[1633130158521,0.00127221,48006.0,48005.0,1.1916]
[1633130158724,0.00127221,48006.0,48005.0,0.029]
[1633130158725,0.07862011,48006.0,48005.0,0.029]
[1633130159324,0.07788923,48006.0,48005.0,0.029]
[1633130159726,0.00063656,48006.0,48001.0,0.9901]
[1633130159925,0.00063656,48006.0,47998.0,1.20180501]
[1633130160324,0.02663656,48006.0,48001.0,0.028]
[1633130160726,0.33916456,48006.0,48001.0,0.028]
[1633130160926,0.02663656,48006.0,48001.0,0.028]
[1633130161325,0.02663656,48006.0,48002.0,0.43660253]
[1633130161526,0.02609523,48006.0,48002.0,0.43660253]
[1633130161728,9.523e-05,48006.0,48002.0,0.43660253]
[1633130162327,9.523e-05,48006.0,48005.0,0.08964477]
[1633130162588,9.523e-05,48006.0,48005.0,0.15893577]
[1633130164186,9.523e-05,48006.0,48005.0,0.19393577]
[1633130164388,0.03300415,48006.0,48005.0,0.19393577]
[1633130165600,0.03300415,48006.0,48005.0,0.15893577]
[1633130166001,0.03300415,48006.0,48005.0,0.26408445]
[1633130166205,0.03300415,48006.0,48005.0,0.30208445]
[1633130166999,0.03300415,48006.0,48005.0,0.21243968]
[1633130167599,0.03300415,48006.0,48005.0,0.17443968]
[1633130168000,9.523e-05,48006.0,48005.0,0.07424005]
[1633130168200,9.523e-05,48006.0,48005.0,0.11124005]
[1633130169602,9.523e-05,48006.0,48005.0,0.07424005]
[1633130169802,9.523e-05,48006.0,48005.0,0.069291]
[1633130170003,0.03300421,48006.0,48005.0,0.069291]
[1633130170203,0.03300421,48006.0,48005.0,0.22233569]
[1633130171604,0.03300421,48006.0,48005.0,0.18533569]
[1633130172206,0.03300421,48006.0,48005.0,0.22233569]
[1633130173405,0.03009523,48006.0,48005.0,0.22728474]
[1633130173807,0.03009523,48006.0,48005.0,0.19028474]
[1633130174207,0.03009523,48006.0,48005.0,0.22728474]
[1633130175407,0.06300428,48006.0,48005.0,0.22233569]
[1633130175604,0.06300428,48006.0,48005.0,0.18533569]
[1633130176207,0.06300428,48006.0,48005.0,0.22233569]
[1633130176612,0.06300428,48006.0,48005.0,0.15304469]
[1633130177208,0.06300428,48006.0,48005.0,0.36920669]
[1633130177608,0.06300428,48006.0,48005.0,0.33220669]
[1633130178412,0.06300428,48006.0,48005.0,0.36820669]
[1633130178812,0.03009523,48006.0,48005.0,0.36820669]
[1633130179012,0.03009523,48006.0,48005.0,0.37315574]
[1633130179611,0.03009523,48006.0,48005.0,0.33715574]
[1633130180011,0.03009523,48006.0,48005.0,0.33505374]
[1633130180412,0.03009523,48006.0,48005.0,0.37105374]
[1633130180811,0.03009523,48006.0,48005.0,0.36610469]
[1633130181011,0.06300435,48006.0,48005.0,0.14994269]
[1633130181614,0.06300435,48006.0,48005.0,0.11394269]
[1633130182416,0.06300435,48006.0,48005.0,0.14894269]
[1633130183816,0.06300435,48006.0,48005.0,0.11394269]
[1633130184016,0.06300435,48006.0,48005.0,0.33010469]
[1633130184219,0.06300435,48006.0,48005.0,0.11394269]
[1633130184422,0.03009523,48006.0,48005.0,0.15489174]
[1633130184821,0.03009523,48006.0,48005.0,0.37105374]
[1633130185022,0.03009523,48006.0,48005.0,0.62373122]
[1633130185220,0.03009523,48006.0,48005.0,1.26351022]
[1633130185420,0.03009523,48006.0,48005.0,1.28191022]
[1633130185619,0.03009523,48006.0,48005.0,1.24591022]
[1633130186496,0.06300442,48006.0,48005.0,0.33118217]
[1633130188419,0.06300442,48006.0,48005.0,0.33018217]
[1633130188618,0.46300442,48006.0,48005.0,0.33018217]
[1633130189622,0.46300442,48006.0,48005.0,0.29118217]
[1633130189819,0.43009523,48006.0,48005.0,0.29118217]
[1633130190019,0.43009523,48006.0,48005.0,0.29613122]
[1633130190420,0.43009523,48006.0,48005.0,0.33313122]
[1633130190620,0.43009523,48006.0,48005.0,0.27651105]
[1633130190823,0.43009523,48006.0,48005.0,0.04194905]
[1633130191620,0.5086341,48006.0,48005.0,0.04194905]
[1633130191822,0.5086341,48006.0,48000.0,0.208326]
[1633130192024,0.54154336,48006.0,48000.0,0.208326]
[1633130192226,0.46300449,48006.0,48000.0,0.208326]
[1633130192502,0.48800449,48006.0,48001.0,0.216162]
[1633130192823,0.48800449,48006.0,48005.0,0.20325728]
[1633130193422,0.48800449,48006.0,48000.0,0.238326]
[1633130193623,0.48800449,48006.0,48001.0,0.216162]
[1633130194030,0.46300449,48006.0,48001.0,0.216162]
[1633130194424,0.48700449,48006.0,48001.0,0.45018327]
[1633130195224,0.48700449,48006.0,48001.0,0.246162]
[1633130195484,0.45409523,48006.0,48001.0,0.25112219]
[1633130195630,0.45409523,48006.0,48001.0,0.22112219]
[1633130195829,0.43009523,48006.0,48001.0,0.22112219]
[1633130196226,0.43009523,48006.0,48003.0,0.24441057]
[1633130196428,0.45309523,48006.0,48003.0,0.24441057]
[1633130196627,7.142e-05,48004.0,48001.0,0.03496019]
[1633130196829,7.142e-05,48004.0,48002.0,0.216162]
[1633130197432,0.03290015,48003.0,48002.0,0.216162]
[1633130197829,0.03290015,48003.0,48002.0,0.55882659]
[1633130198228,0.03290015,48003.0,48002.0,0.45979089]
[1633130198494,0.03290015,48003.0,48002.0,0.49079089]
[1633130199831,0.03290015,48003.0,48002.0,0.247162]
[1633130200232,0.03290015,48003.0,48002.0,0.216162]
[1633130200434,0.05090015,48003.0,48002.0,0.68687923]
[1633130200632,0.05090015,48003.0,48002.0,0.83391278]
[1633130200833,0.018,48003.0,48002.0,1.14391649]
[1633130201031,7.142e-05,48004.0,48002.0,1.22433776]
[1633130201232,7.142e-05,48004.0,48003.0,0.809295]
[1633130201498,7.142e-05,48004.0,48003.0,0.827695]
[1633130202234,7.142e-05,48004.0,48003.0,0.087695]
[1633130202432,7.142e-05,48004.0,48003.0,0.122695]
[1633130202634,7.142e-05,48004.0,48003.0,0.435136]
[1633130202832,7.142e-05,48004.0,48003.0,0.658336]
[1633130203034,0.03297347,48004.0,48003.0,0.658336]
[1633130203629,0.03297347,48004.0,48003.0,0.73893434]
[1633130204230,0.03297347,48004.0,48003.0,0.72898591]
[1633130204492,0.03297347,48004.0,48003.0,0.76298591]
[1633130204834,0.03297347,48004.0,48003.0,0.250137]
[1633130205837,0.03297347,48004.0,48003.0,0.216137]
[1633130206040,0.03297347,48004.0,48003.0,0.234537]
[1633130206439,7.142e-05,48004.0,48003.0,0.36403249]
[1633130206638,7.142e-05,48004.0,48003.0,0.67649949]
[1633130207751,0.06031368,48020.0,48005.0,0.216137]
[1633130207945,0.06031031,48023.0,48006.0,0.26962107]
[1633130208145,0.06030927,48024.0,48007.0,0.21736566]
[1633130208346,0.06030794,48025.0,48008.0,0.0184]
[1633130208543,0.06030794,48025.0,48023.0,0.2318919]
[1633130208746,0.24908498,48024.0,48012.0,0.10898782]
[1633130208945,0.03318596,48024.0,48013.0,0.21947487]
[1633130209144,0.09349275,48024.0,48013.0,0.21947487]